Cogmind - Beta 17.1 @@@ ROGUE MODE // 2026.09.17 @ 02:33:55 Player: celerysam Result: Destroyed by Y-72 Warden with Quantum Rifle Performance ------------- Evolutions (7) 3500 Regions Visited (12) 2400 Robots Destroyed (55) 275 Value Destroyed (1847) 1847 Prototype IDs (17) 340 Alien Tech Used (2) 400 Bonus (2020) 2020 TOTAL SCORE: 10782 Bonus ------- Follower Combat Kills 20 Met Sigix 2000 Cogmind --------- Core Integrity 0/1300 Matter 156/300 Energy 100/100 System Corruption 10% Temperature Cool (9) Movement Core (50) Location -3/Quarantine Parts ------- > --- POWER (2) -------- (None) > --- PROPULSION (7) --- (None) > --- UTILITY (6) ------ (None) > --- WEAPON (6) ------- (None) > --- INVENTORY (5) ---- Subatomic Replicator Micro-nuke Launcher Improved Remote Datajack Sigix Containment Pod Peak State ------------ > --- POWER ------------ Matter Drive > --- PROPULSION ------- Improved Linear Gravjet Antigrav Array Q-thruster Impulse Thruster Array > --- UTILITY ---------- Advanced Signal Interpreter IFF Parser ECM Suite Experimental ECM Suite Graphene Brace Experimental Thermal Shield > --- WEAPON ----------- Heavy Dispersion Rifle Advanced Datajack Power Sword > --- INVENTORY -------- Micro Antimatter Reactor Medium Storage Unit Subatomic Replicator Micro-nuke Launcher Improved Remote Datajack [Rating: 120] Favorites ----------- Power Cooled Ion Engine Engine Cooled Ion Engine Power Core Micro Nuclear Core Reactor Matter Drive Propulsion Light Treads Treads Light Treads Wheel Wheel Hover Unit Improved Linear Gravjet Flight Unit Improved Flight Unit Utility High-capacity Storage Unit Device Terrain Scanner Storage High-capacity Storage Unit Processor Signal Interpreter Hackware Advanced Hacking Suite Protection Medium Armor Plating Weapon Light EM Pulse Cannon Energy Gun Pulse Rifle Energy Cannon Light EM Pulse Cannon Ballistic Gun Gauss Rifle Ballistic Cannon Improved Light Cannon Launcher Rocket Launcher Special Weapon Plasma Cutter Impact Weapon Hammer Slashing Weapon Great Axe Special Melee Weapon Improved Datajack Build | -11 -10 -9 -8 -7 -7 -7 -6 -5 -5 -4 -3 -3 ------- Run | Yrd Mat Mat Mat Fac Low Low Fac Fac Ext Fac Res Qua Slots Evolved 14 | . . 2 2 2 . . 2 2 . 2 2 . Power 1 | . . . . 1 . . . . . . . . Propulsion 5 | . . 1 1 1 . . 1 . . 1 . . Utility 4 | . . 1 . . . . 1 1 . 1 . . Weapon 4 | . . . 1 . . . . 1 . . 2 . Parts Attached 116 | 6 9 21 29 5 . . 1 6 2 6 19 12 Power 16 | 1 2 2 3 . . . . 2 . 2 2 2 Engine 10 | 1 2 2 1 . . . . 1 . 2 1 . Core 3 | . . . 2 . . . . 1 . . . . Reactor 3 | . . . . . . . . . . . 1 2 Propulsion 34 | 2 1 6 12 2 . . . 1 . 1 6 3 Treads 12 | 2 1 2 7 . . . . . . . . . Leg . | . . . . . . . . . . . . . Wheel 4 | . . 4 . . . . . . . . . . Hover 4 | . . . . . . . . . . . 4 . Flight 14 | . . . 5 2 . . . 1 . 1 2 3 Utility 38 | 1 2 7 7 1 . . 1 2 2 2 9 4 Device 22 | . 1 2 4 . . . 1 1 . 1 8 4 Storage 6 | 1 1 1 2 1 . . . . . . . . Processor 3 | . . 2 . . . . . . . 1 . . Hackware 2 | . . . . . . . . . 1 . 1 . Protection 5 | . . 2 1 . . . . 1 1 . . . Artifact . | . . . . . . . . . . . . . Weapon 28 | 2 4 6 7 2 . . . 1 . 1 2 3 Energy Gun 9 | 1 . 4 2 . . . . . . . 1 1 Energy Cannon 4 | . 3 . 1 . . . . . . . . . Ballistic Gun 5 | 1 . 1 1 1 . . . . . . 1 . Ballistic Cannon 1 | . . 1 . . . . . . . . . . Launcher 2 | . . . 1 . . . . . . 1 . . Special Weapon 1 | . . . 1 . . . . . . . . . Impact Weapon 2 | . 1 . 1 . . . . . . . . . Slashing Weapon 2 | . . . . 1 . . . . . . . 1 Piercing Weapon . | . . . . . . . . . . . . . Special Melee Weapon 2 | . . . . . . . . 1 . . . 1 Unidentified Prototypes 10 | . 1 1 . 1 . . . . . . 2 5 Parts Lost 81 | . 1 9 18 . . . . 1 3 12 19 18 Power 14 | . . 1 2 . . . . . . 4 5 2 Propulsion 25 | . . 2 7 . . . . . . 5 4 7 Utility 25 | . . 3 4 . . . . . 2 2 7 7 Weapon 17 | . 1 3 5 . . . . 1 1 1 3 2 Highest Loss Streak 14 | . 1 4 14 . . . . 1 3 12 5 13 To Critical Strikes 2 | . . . 2 . . . . . . . . . Average Backups 11 | 4 11 18 18 4 5 5 4 4 4 6 4 4 Power 1 | . 1 1 1 . . . . . 1 . . . Propulsion 2 | 2 2 4 4 . 1 1 . . 2 . . . Utility 4 | . 4 6 7 3 4 4 3 3 1 3 2 1 Weapon 1 | 1 2 3 2 . . . . . . . . 1 Tool/Special . | . . . . . . . . . . . . . Unused Backups 25 | . 5 2 9 2 . . 1 1 . . 1 4 Power 3 | . 1 1 1 . . . . . . . . . Propulsion 2 | . . . 2 . . . . . . . . . Utility 12 | . 2 1 5 1 . . 1 1 . . 1 . Weapon 3 | . 1 . . 1 . . . . . . . 1 Tool/Special 5 | . 1 . 1 . . . . . . . . 3 Average Slot Usage (%) 85 | . 99 95 89 96 100 100 99 97 85 59 40 44 Engine 9 | . 13 10 8 12 15 15 13 10 8 4 1 . Treads 12 | . 28 13 16 . . . . . . . . . Wheel 4 | . . 16 9 . . . . . . . . . Flight 8 | . . . 4 38 38 38 40 33 29 22 4 7 Device 11 | . 13 7 10 13 15 15 19 17 8 4 12 13 Storage 8 | . 14 11 9 8 7 7 6 5 7 10 . . Processor 2 | . . 8 . . . . . . . . 4 2 Protection 2 | . . 5 6 . . . . 4 5 1 . . Energy Gun 7 | . 9 11 7 7 7 7 6 5 5 2 3 2 Energy Cannon 4 | . 9 7 . . . . . . . . . . Ballistic Gun 3 | . 3 . 7 6 7 7 6 5 5 . . . Ballistic Cannon 1 | . . 1 6 . . . . . . . . . Impact Weapon 1 | . 5 . . 3 . . . . . . . . Slashing Weapon 1 | . . . . 3 7 7 6 5 5 5 . 3 Peak Build Rating 120 | 6 13 19 28 40 40 40 47 59 61 66 90 120 Average Rating 29 | 3 8 16 23 37 40 40 46 53 57 48 57 82 On Entrance 35 | . 6 13 19 26 40 40 40 47 56 57 38 75 Avg Prop Armor Cover (%) 8 | . . 9 9 . . . . . . . 9 7 Naked Turns 1 | . . . . . . . . . . . . 1 Heaviest Build 67 | 13 37 64 67 25 25 25 27 30 34 31 27 35 Greatest Support 63 | 40 40 40 63 25 25 25 30 34 34 41 24 45 Greatest Overweight (x) 6 | . . 6 6 . . . . 1 . 1 2 2 Average Overweight (x) . | . . 2 2 . . . . . . . . . Largest Inventory Capacity 20 | 8 15 20 20 5 5 5 5 5 10 10 10 10 Average Capacity 12 | 6 12 19 18 5 5 5 5 5 7 10 5 5 Most Carried 20 | 6 15 20 20 5 5 5 5 5 5 10 9 5 Average Carried 11 | 4 11 18 18 4 5 5 4 4 4 6 4 4 Final Capacity 20 | 8 15 20 5 5 5 5 5 5 10 10 5 5 Final Carried 18 | 4 15 18 5 5 5 5 5 5 4 8 5 5 Class Distribution -------------------- 69% | Mutant 20% | Sprinter 9% | Tank Dominant Class ---------------- Mutant | -10/Materials Mutant | -9/Materials Tank | -8/Materials Sprinter | -7/Factory Sprinter | -7/Lower Caves Sprinter | -7/Lower Caves Sprinter | -6/Factory Sprinter | -5/Factory Sprinter | -5/Extension Sprinter | -4/Factory Mutant | -3/Research Mutant | -3/Quarantine Resources | -11 -10 -9 -8 -7 -7 -7 -6 -5 -5 -4 -3 -3 ----------- Run | Yrd Mat Mat Mat Fac Low Low Fac Fac Ext Fac Res Qua Matter Collected 1618 | 206 196 274 307 59 57 103 . 113 80 32 191 . Remotely . | . . . . . . . . . . . . . Salvage Created 2130 | . 374 998 671 59 . . . . . . 28 . Parts 118 | . 30 56 28 3 . . . . . . 1 . Haulers Intercepted 2 | . . 2 . . . . . . . . . . Recyclers Shooed . | . . . . . . . . . . . . . Parts Field Recycled . | . . . . . . . . . . . . . Retrieved Matter . | . . . . . . . . . . . . . Parts Self-Destructed . | . . . . . . . . . . . . . Prevented . | . . . . . . . . . . . . . Parts Restored . | . . . . . . . . . . . . . Kills | -11 -10 -9 -8 -7 -7 -7 -6 -5 -5 -4 -3 -3 ------- Run | Yrd Mat Mat Mat Fac Low Low Fac Fac Ext Fac Res Qua Combat Hostiles Destroyed 41 | . 11 17 12 1 . . . . . . . . Guns 20 | . 7 7 6 . . . . . . . . . Cannons 13 | . 4 6 3 . . . . . . . . . AOE 7 | . . 4 3 . . . . . . . . . Classes Destroyed 11 | . 3 4 4 . . . . . . . . . Worker 4 | . . 2 1 . . . . . . . 1 . Tunneler 2 | . . 2 . . . . . . . . . . Hauler 2 | . . 2 . . . . . . . . . . Recycler 1 | . . . 1 . . . . . . . . . Mechanic 1 | . . . 1 . . . . . . . . . Watcher 4 | . 1 3 . . . . . . . . . . Swarmer 5 | . 5 . . . . . . . . . . . Grunt 24 | . 6 11 7 . . . . . . . . . Sentry 9 | . . 6 2 1 . . . . . . . . Specialist 2 | . . . 2 . . . . . . . . . Hunter 1 | . . . 1 . . . . . . . . . Best Kill Streak 7 | . 5 6 7 1 . . . . . . 1 . Combat Bots Only 5 | . 5 5 4 1 . . . . . . . . Max Kills in Single Turn 4 | . 1 3 4 1 . . . . . . 1 . Gunslinging . | . . . . . . . . . . . . . Exploded 3 | . . 2 3 . . . . . . . . . Melee . | . . . . . . . . . . . . . Uniques/NPCs Destroyed . | . . . . . . . . . . . . . Combat | -11 -10 -9 -8 -7 -7 -7 -6 -5 -5 -4 -3 -3 -------- Run | Yrd Mat Mat Mat Fac Low Low Fac Fac Ext Fac Res Qua Hostile Shots Fired 861 | . 73 79 172 9 12 9 11 4 30 125 167 170 Missed 349 | . 25 20 42 7 10 4 8 . 10 72 83 68 Hits 512 | . 48 59 130 2 2 5 3 4 20 53 84 102 Melee 18 | . . 1 . . . . . . . 17 . . Projectile 494 | . 48 58 130 2 2 5 3 4 20 36 84 102 AOE 2 | . . . . . . . . . . 1 1 . Critical Strikes 31 | . 1 3 8 . . . . . . 6 8 5 Actively Blocked 9 | . . . . . . . . . . . 4 5 Damage Taken 9803 | . 538 1009 2262 24 26 41 22 97 462 1120 1900 2302 Core 2209 | . 56 62 336 12 . 23 . . 64 351 654 651 Absorbed by Shields 234 | . . . . . . . . . . . . 234 Redirected to Shielding 159 | . . . . . . . . . 95 16 48 . Ignored by Resistances 102 | . . . . . . . . . . . 54 48 Core Remaining (%) 82 | 100 77 84 38 . . 95 100 . 93 69 . . Volleys Fired 129 | . 31 54 41 . . . . . . 1 2 . Largest 3 | . 2 2 3 . . . . . . 1 1 . Hottest 121 | . 112 121 117 . . . . . . 49 94 . Shots Fired 271 | . 56 100 112 . . . . . . 1 2 . Gun 161 | . 32 57 70 . . . . . . . 2 . Cannon 108 | . 24 43 41 . . . . . . . . . Launcher 2 | . . . 1 . . . . . . 1 . . Special . | . . . . . . . . . . . . . Kinetic 98 | . 11 11 76 . . . . . . . . . Thermal 85 | . 21 27 35 . . . . . . . 2 . Explosive 2 | . . . 1 . . . . . . 1 . . Electromagnetic 86 | . 24 62 . . . . . . . . . . Robot Hit Streak 13 | . 5 13 9 . . . . . . . 3 . Robot Miss Streak 5 | . 4 5 3 . . . . . . . . . Penetration Max 1 | . . . 1 . . . . . . . . . Secondary Targets . | . . . . . . . . . . . . . Shots Hit Robots 175 | . 32 72 66 1 . . . . . 1 2 1 Core Hits 93 | . 19 38 31 . . . . . . 3 2 . Critical Kills . | . . . . . . . . . . . . . Critical Parts Destroyed . | . . . . . . . . . . . . . Critical Strikes 10 | . 1 4 4 . . . . . . . . 1 Burn 8 | . 1 3 4 . . . . . . . . . Corrupt 1 | . . 1 . . . . . . . . . . Sever 1 | . . . . . . . . . . . . 1 Melee Attacks 77 | . 5 2 6 16 . 12 4 16 . 8 . 8 Impact 19 | . 5 2 6 6 . . . . . . . . Slashing 58 | . . . . 10 . 12 4 16 . 8 . 8 Piercing . | . . . . . . . . . . . . . Sneak Attacks 1 | . . . . 1 . . . . . . . . Combat Hostiles 1 | . . . . 1 . . . . . . . . Follow-up Attacks . | . . . . . . . . . . . . . Damage Inflicted 4310 | . 540 1919 1577 66 . . . . . 80 93 35 Guns 1844 | . 245 677 866 . . . . . . . 56 . Cannons 1401 | . 291 636 474 . . . . . . . . . Explosions 874 | . . 606 237 . . . . . . 31 . . Melee 150 | . . . . 66 . . . . . 49 . 35 Ramming 41 | . 4 . . . . . . . . . 37 . Kinetic 1173 | . 74 121 978 . . . . . . . . . Thermal 1132 | . 171 543 362 . . . . . . . 56 . Explosive 577 | . . 309 237 . . . . . . 31 . . Electromagnetic 1237 | . 291 946 . . . . . . . . . . Impact 66 | . . . . 66 . . . . . . . . Slashing 84 | . . . . . . . . . . 49 . 35 Piercing . | . . . . . . . . . . . . . Highest Corruption 10 | . 3 5 . . . . . . . . . 10 Average Corruption 4 | . 2 5 . . . . . . . . . 9 Corruption Purged . | . . . . . . . . . . . . . Corruption Blocked . | . . . . . . . . . . . . . Effects 33 | . 18 6 . . . . . . . . . 9 Message Errors 12 | . 7 2 . . . . . . . . . 3 Matter Fused 2 | . 2 . . . . . . . . . . . Heat Flow Errors 1 | . . . . . . . . . . . . 1 Energy Discharges 4 | . 3 1 . . . . . . . . . . Parts Fused 1 | . 1 . . . . . . . . . . . Data Loss (minor) 6 | . 3 1 . . . . . . . . . 2 Data Loss (major) 1 | . . . . . . . . . . . . 1 Misfires 2 | . . 2 . . . . . . . . . . Alerts 1 | . 1 . . . . . . . . . . . Misdirections 2 | . . . . . . . . . . . . 2 Weapon Failures 1 | . 1 . . . . . . . . . . . Overload Shots . | . . . . . . . . . . . . . Overflow Damage 198 | . 6 144 21 26 . . . . . 1 . . Projectiles 37 | . 6 20 11 . . . . . . . . . Explosions 135 | . . 124 10 . . . . . . 1 . . Melee 26 | . . . . 26 . . . . . . . . Knockbacks 6 | . . 1 4 . . . . . . . 1 . Impact 1 | . . . . . . . . . . . 1 . Kinetic 5 | . . 1 4 . . . . . . . . . Secondary . | . . . . . . . . . . . . . Self-Inflicted Damage 290 | . . 238 34 . . . . . . . 18 . Shots 4 | . . 3 1 . . . . . . . . . Rammed 4 | . 2 . . . . . . . . . 2 . Targets Rammed 4 | . 2 . . . . . . . . . 2 . Kicked . | . . . . . . . . . . . . . Crushed . | . . . . . . . . . . . . . Highest Temperature 333 | . 235 273 42 9 . 9 . . . 333 238 231 Average Temperature 80 | . 78 83 7 5 . 6 . . . 163 86 125 Received Heat Transfer 2811 | . 102 396 882 12 . 12 6 18 60 411 726 186 Effects 4 | . 3 1 . . . . . . . . . . Energy Bleed 1 | . . 1 . . . . . . . . . . Interference 3 | . 3 . . . . . . . . . . . Siege Activations . | . . . . . . . . . . . . . Martial Activations . | . . . . . . . . . . . . . Shielding Activations . | . . . . . . . . . . . . . Robots Disrupted . | . . . . . . . . . . . . . Combat Hostiles . | . . . . . . . . . . . . . Robots Corrupted 1 | . . . . 1 . . . . . . . . Combat Hostiles 1 | . . . . 1 . . . . . . . . Parts Fried 7 | . . 7 . . . . . . . . . . Impact Corruptions 1 | . . . . 1 . . . . . . . . Robots Melted . | . . . . . . . . . . . . . Combat Hostiles . | . . . . . . . . . . . . . Parts Melted 4 | . 2 . 2 . . . . . . . . . Heat Transferred 2803 | . 592 1101 1036 . . . . . . . 74 . Parts Sabotaged . | . . . . . . . . . . . . . Parts Stolen . | . . . . . . . . . . . . . Parts Stripped . | . . . . . . . . . . . . . Power Chain Reactions 3 | . . 3 . . . . . . . . . . Alert | -11 -10 -9 -8 -7 -7 -7 -6 -5 -5 -4 -3 -3 ------- Run | Yrd Mat Mat Mat Fac Low Low Fac Fac Ext Fac Res Qua Maximum Alert Level 1 | . . . . . . . . . . 1 1 . Low Security (%) 95 | 100 100 100 100 100 . . 100 100 100 97 57 100 Level 1 4 | . . . . . . . . . . 2 42 . Level 2 . | . . . . . . . . . . . . . Level 3 . | . . . . . . . . . . . . . Level 4 . | . . . . . . . . . . . . . Level 5 . | . . . . . . . . . . . . . High Security . | . . . . . . . . . . . . . Max Security . | . . . . . . . . . . . . . Peak Influence 360 | . 157 172 164 60 . . 1 23 77 203 360 130 Initial 106 | . . 50 67 43 . . . . . 30 106 76 Average 70 | . 50 71 51 38 . . . 8 35 49 197 91 Influence Increases 2958 | . 361 629 483 87 . . 8 77 129 336 617 231 Destroy 0b10 Robot/C 860 | . 220 340 240 20 . . . . 40 . . . Destroy 0b10 Robot/NC 70 | . 5 45 15 . . . . . . . 5 . Destroy Leader 222 | . 52 100 60 10 . . . . . . . . Allied During Kill 5 | . . . . . . . . . 5 . . . Successful Hack 77 | . 5 . 5 . . . 5 . 24 7 12 19 Disable Machine 225 | . 60 60 45 . . . . . . 30 . 30 Destroy Structure 164 | . 4 69 28 12 . . 3 32 . 14 . 2 Partial Spotted 150 | . . . . 45 . . . 45 . 15 15 30 Lose Combat Pursuer 1185 | . 15 15 90 . . . . . 60 270 585 150 Influence Decreases 2958 | . 242 587 548 143 40 . 8 75 69 195 683 368 Entered New Map 423 | . . 69 94 53 15 . . . 2 32 97 61 Time Decay 1635 | . 232 428 284 90 25 . 8 65 30 70 246 157 Lost Part 730 | . 10 90 170 . . . . 10 17 93 190 150 Lost Ally 20 | . . . . . . . . . 20 . . . Purge Threat 150 | . . . . . . . . . . . 150 . Squads Dispatched 24 | . 1 3 4 . . . . 1 1 4 7 3 Investigation 4 | . . 2 . . . . . . 1 . 1 . Extermination 5 | . . . . . . . . . . 1 3 1 Reinforcement 12 | . 1 1 3 . . . . 1 . 1 3 2 Assault 2 | . . . . . . . . . . 2 . . Garrison 1 | . . . 1 . . . . . . . . . Intercept . | . . . . . . . . . . . . . Searches Triggered . | . . . . . . . . . . . . . Construction Impeded . | . . . . . . . . . . . . . Haulers Reinforced . | . . . . . . . . . . . . . Active Scanning Responses . | . . . . . . . . . . . . . Cargo Convoy Interrupts . | . . . . . . . . . . . . . Stealth | -11 -10 -9 -8 -7 -7 -7 -6 -5 -5 -4 -3 -3 --------- Run | Yrd Mat Mat Mat Fac Low Low Fac Fac Ext Fac Res Qua Distress Signals 13 | . 1 4 1 . . . . . . 2 5 . Communications Jammed . | . . . . . . . . . . . . . Distress Signals . | . . . . . . . . . . . . . Times Spotted 212 | . 24 28 29 2 4 2 5 2 16 32 46 22 Peak Tracking Total 21 | . 8 5 9 1 5 2 5 3 10 21 14 8 Tactical Retreats 35 | . 1 1 5 1 2 1 . . 2 6 11 5 ECM-based Alert Blocks 10 | . . . 1 1 5 1 . . . . 1 1 Traps | -11 -10 -9 -8 -7 -7 -7 -6 -5 -5 -4 -3 -3 ------- Run | Yrd Mat Mat Mat Fac Low Low Fac Fac Ext Fac Res Qua Traps Triggered 16 | . 4 2 . 2 . . . 2 1 . 3 2 Indirectly . | . . . . . . . . . . . . . Trap Hack Attempts . | . . . . . . . . . . . . . Triggered . | . . . . . . . . . . . . . Disarmed . | . . . . . . . . . . . . . Reprogrammed . | . . . . . . . . . . . . . Reused . | . . . . . . . . . . . . . Traps Extracted . | . . . . . . . . . . . . . Installed . | . . . . . . . . . . . . . Triggered . | . . . . . . . . . . . . . Machines | -11 -10 -9 -8 -7 -7 -7 -6 -5 -5 -4 -3 -3 ---------- Run | Yrd Mat Mat Mat Fac Low Low Fac Fac Ext Fac Res Qua Machines Disabled 15 | . 4 4 3 . . . . . . 2 . 2 Max in Single Turn 1 | . 1 1 1 . . . . . . 1 . 1 Garrison Access 1 | . . . . . . . . . . 1 . . Machines Repaired . | . . . . . . . . . . . . . Machines Dismantled 1 | . . . 1 . . . . . . . . . Machines Sabotaged . | . . . . . . . . . . . . . Overloaded Fab Kills . | . . . . . . . . . . . . . Hacking | -11 -10 -9 -8 -7 -7 -7 -6 -5 -5 -4 -3 -3 --------- Run | Yrd Mat Mat Mat Fac Low Low Fac Fac Ext Fac Res Qua Machines Accessed 32 | . 4 3 2 2 . 1 2 5 4 2 3 4 Terminals 18 | . 3 2 1 . . 1 1 1 4 1 1 3 Fabricators . | . . . . . . . . . . . . . Repair Stations 3 | . . . . 1 . . . . . 1 1 . Recycling Units 6 | . 1 . 1 . . . 1 2 . . 1 . Scanalyzers 5 | . . 1 . 1 . . . 2 . . . 1 Garrison Access . | . . . . . . . . . . . . . Total Hacks 48 | . 9 5 3 2 . 1 3 5 7 3 5 5 Successful 33 | . 6 3 3 1 . 1 2 4 4 3 3 3 Failed 15 | . 3 2 . 1 . . 1 1 3 . 2 2 Catastrophic 2 | . . 1 . . . . . . . . . 1 Database Lockouts . | . . . . . . . . . . . . . Manual 11 | . 3 3 1 . . . . . . . 2 2 Terminals 32 | . 8 3 2 . . 1 1 1 7 2 3 4 Fabricators . | . . . . . . . . . . . . . Repair Stations 3 | . . . . 1 . . . . . 1 1 . Recycling Units 7 | . 1 . 1 . . . 2 2 . . 1 . Scanalyzers 6 | . . 2 . 1 . . . 2 . . . 1 Garrison Access . | . . . . . . . . . . . . . Terminal Hacks 16 | . 3 . 1 . . 1 1 . 4 2 2 2 Record 2 | . . . . . . 1 . . . . . 1 Prototype ID Bank 5 | . 3 . . . . . 1 . . . 1 . Open Door 5 | . . . . . . . . . 4 . . 1 Emergency Access Points 1 | . . . . . . . . . . 1 . . Alert Level 2 | . . . 1 . . . . . . 1 . . Unreport Threat 1 | . . . . . . . . . . . 1 . Fabricator Hacks . | . . . . . . . . . . . . . Repair Station Hacks 3 | . . . . 1 . . . . . 1 1 . Refit 3 | . . . . 1 . . . . . 1 1 . Recycling Unit Hacks 5 | . 1 . 1 . . . 1 2 . . . . Report Inventory 5 | . 1 . 1 . . . 1 2 . . . . Scanalyzer 5 | . . 2 . . . . . 2 . . . 1 Insert Component 1 | . . 1 . . . . . . . . . . Analyze 1 | . . 1 . . . . . . . . . . Retrieve Study 3 | . . . . . . . . 2 . . . 1 Garrison Access Hacks . | . . . . . . . . . . . . . Unauthorized Hacks 4 | . 2 1 1 . . . . . . . . . Terminals 4 | . 2 1 1 . . . . . . . . . Botnet 4 | . 2 1 1 . . . . . . . . . Fabricators . | . . . . . . . . . . . . . Repair Stations . | . . . . . . . . . . . . . Recycling Units . | . . . . . . . . . . . . . Scanalyzers . | . . . . . . . . . . . . . Garrison Access . | . . . . . . . . . . . . . Data Cores Recovered . | . . . . . . . . . . . . . Used . | . . . . . . . . . . . . . Hacking Detections 12 | . 1 1 . . . 1 . 3 2 2 1 1 Full Trace Events 1 | . . 1 . . . . . . . . . . Feedback Events . | . . . . . . . . . . . . . Feedback Blocked . | . . . . . . . . . . . . . Robot Schematics Acquired . | . . . . . . . . . . . . . Robots Built . | . . . . . . . . . . . . . Authchips . | . . . . . . . . . . . . . Time . | . . . . . . . . . . . . . Total Robot Build Rating . | . . . . . . . . . . . . . Part Schematics Acquired 1 | . . 1 . . . . . . . . . . Parts Built . | . . . . . . . . . . . . . Authchips . | . . . . . . . . . . . . . Time . | . . . . . . . . . . . . . Total Part Build Rating . | . . . . . . . . . . . . . Part Studies Acquired 3 | . . . . . . . . 2 . . . 1 Parts Repaired . | . . . . . . . . . . . . . Time . | . . . . . . . . . . . . . Parts Recycled . | . . . . . . . . . . . . . Recycled Matter . | . . . . . . . . . . . . . Retrieved Matter . | . . . . . . . . . . . . . Retrieved Components . | . . . . . . . . . . . . . Parts Scanalyzed 1 | . . 1 . . . . . . . . . . Part Schematics Acquired 1 | . . 1 . . . . . . . . . . Parts Damaged . | . . . . . . . . . . . . . Bothacking | -11 -10 -9 -8 -7 -7 -7 -6 -5 -5 -4 -3 -3 ------------ Run | Yrd Mat Mat Mat Fac Low Low Fac Fac Ext Fac Res Qua Used RIF Installer . | . . . . . . . . . . . . . Robots Hacked . | . . . . . . . . . . . . . Non-combat . | . . . . . . . . . . . . . Combat . | . . . . . . . . . . . . . Robot Hacks Applied . | . . . . . . . . . . . . . Relay Couplers Released 1 | . . . . . . . . . . 1 . . Machine Destruction 1 | . . . . . . . . . . 1 . . Fabnet Peak Effective % . | . . . . . . . . . . . . . Robots Rewired . | . . . . . . . . . . . . . Allies Hacked . | . . . . . . . . . . . . . Hacks Repelled . | . . . . . . . . . . . . . Allies | -11 -10 -9 -8 -7 -7 -7 -6 -5 -5 -4 -3 -3 -------- Run | Yrd Mat Mat Mat Fac Low Low Fac Fac Ext Fac Res Qua Total Allies 4 | . . . . . . . . . 4 . . . Largest Group 3 | . . . . . . . . . 3 . . . Highest-Rated Group 82 | . . . . . . . . . 82 . . . Highest-Rated Ally 31 | . . . . . . . . . 31 . . . Total Orders . | . . . . . . . . . . . . . Ally Attacks 11 | . . . . . . . . . 11 . . . Total Damage 110 | . . . . . . . . . 110 . . . Kills 2 | . . . . . . . . . 2 . . . Allies Corrupted . | . . . . . . . . . . . . . Allies Melted . | . . . . . . . . . . . . . Intel | -11 -10 -9 -8 -7 -7 -7 -6 -5 -5 -4 -3 -3 ------- Run | Yrd Mat Mat Mat Fac Low Low Fac Fac Ext Fac Res Qua Active Infowar (turns) 3113 | . 1259 543 88 198 64 243 101 172 10 60 310 65 Optics 2 | . . 2 . . . . . . . . . . Sensors 619 | . . 541 . . . . . . . . 78 . IFF 356 | . . . . . . . . . . 60 232 64 Terrain 1260 | . 1259 1 . . . . . . . . . . Seismic 771 | . . . 37 143 64 243 101 172 10 . 1 . ECM 943 | . . . 88 198 64 243 101 96 10 . 81 62 Robot Analysis Total . | . . . . . . . . . . . . . Derelict Logs Recovered 1 | . . . . . 1 . . . . . . . Drone Launches . | . . . . . . . . . . . . . Drone Recoveries . | . . . . . . . . . . . . . Exploration | -11 -10 -9 -8 -7 -7 -7 -6 -5 -5 -4 -3 -3 ------------- Run | Yrd Mat Mat Mat Fac Low Low Fac Fac Ext Fac Res Qua Turns Passed 5078 | 82 1354 1053 725 198 64 243 101 172 61 172 528 325 Spaces Moved 6082 | 52 744 639 418 387 247 808 247 388 202 456 1019 475 Core 23 | 16 . . . . . . . . . . 1 6 Treads 929 | 36 744 92 57 . . . . . . . . . Legs . | . . . . . . . . . . . . . Wheels 787 | . . 547 240 . . . . . . . . . Hover 331 | . . . . . . . . . . . 50 281 Flight 4012 | . . . 121 387 247 808 247 388 202 456 968 188 Fastest Speed 19 | 50 160 120 29 26 26 26 23 23 26 19 37 32 Average Speed 64 | 126 160 131 118 26 26 26 23 23 26 27 43 44 Slowest Speed 400 | 160 160 400 400 27 26 26 23 99 27 112 180 200 Overloaded Moves 73 | . . . . . . . . . . 73 . . Propulsion Burnouts . | . . . . . . . . . . . . . Robots Hopped 42 | . . . 1 1 . . . 2 9 9 19 1 Potential Cave-ins 19 | . . . . . . . . . . . . 19 Cave-ins Triggered 2 | . . . . . . . . . . . . 2 Exploration Rate (%) 37 | 3 95 49 40 7 50 67 7 15 38 19 31 61 Regions Visited 12 Branch Regions 4 Pre-discovered Areas . | . . . . . . . . . . . . . Known Exits Taken 2 | . . 1 . . . . . . . 1 . . Unknown Exits Taken 10 | 1 1 . 1 1 1 1 1 1 1 . 1 . Scrap Searched 3 | . . . . . 1 2 . . . . . . Spaces Dug 63 | . 4 2 6 13 . 12 3 16 . 6 . 1 Terrain Destroyed 169 | . 4 89 24 13 . 12 3 16 . 7 . 1 Melee 63 | . 4 2 6 13 . 12 3 16 . 6 . 1 Projectile 4 | . . 2 2 . . . . . . . . . AOE 102 | . . 85 16 . . . . . . 1 . . Terrain Rammed . | . . . . . . . . . . . . . Walls Destroyed . | . . . . . . . . . . . . . Machines Disabled . | . . . . . . . . . . . . . Actions | -11 -10 -9 -8 -7 -7 -7 -6 -5 -5 -4 -3 -3 --------- Run | Yrd Mat Mat Mat Fac Low Low Fac Fac Ext Fac Res Qua Total 6771 | 67 844 757 539 454 246 819 283 436 197 478 1079 572 Wait 133 | . 19 2 7 6 . . 27 12 . . 3 57 Move 5994 | 51 743 638 415 384 246 807 246 383 185 439 986 471 Hop 32 | . . . 1 1 . . . 2 7 7 13 1 Pick Up 107 | 8 21 21 17 6 . . 3 5 . 12 10 4 Fast Attach 43 | 4 2 2 7 1 . . . 5 1 . 11 10 Attach 59 | 2 2 11 13 2 . . 2 2 1 9 10 5 Detach 5 | . . . 1 . . . . . . 1 1 2 Swap 55 | . 9 14 13 3 . . . 5 3 1 6 1 Drop 63 | 2 10 13 14 5 . . 1 6 . . 7 5 Fire 129 | . 31 54 41 . . . . . . 1 2 . Melee 77 | . 5 2 6 16 . 12 4 16 . 8 . 8 Ram 2 | . . . . . . . . . . . 2 . Kick . | . . . . . . . . . . . . . Crush 2 | . 2 . . . . . . . . . . . Escape Stasis 66 | . . . . 30 . . . . . . 28 8 Rewire . | . . . . . . . . . . . . . Trap . | . . . . . . . . . . . . . Miscellaneous 4 | . . . 4 . . . . . . . . . Route ------- -11/Scrapyard -10/Materials (discovered 5 exits: *Mat x3 / [*Min x2]) -9/Materials (discovered 2 exits: *Mat x2) -8/Materials -7/Factory -7/Lower Caves -7/Lower Caves -6/Factory -5/Factory (discovered 2 exits: Upp / *Ext) -5/Extension -4/Factory -3/Research -3/Quarantine History --------- Turn | Location | Event 12 | -11/Scrapyard | Discovered new exit (range 15) 83 | -11/Scrapyard | Entered Materials 93 | -10/Materials | Discovered new exit (range 16) 257 | -10/Materials | Discovered new exit (range 5) 310 | -10/Materials | Build established: Mutant 329 | -10/Materials | Discovered new exit (range 8) 1155 | -10/Materials | Discovered new exit (range 5) 1309 | -10/Materials | Discovered new exit (range 7) 1437 | -10/Materials | Entered another Materials area 1437 | -9/Materials | Evolved 2 slots: Propulsion x1, Utility x1 1720 | -9/Materials | Discovered new exit (range 13) 1796 | -9/Materials | Identified exit to Materials 2208 | -9/Materials | Discovered exit to Materials (range 9) 2353 | -9/Materials | Lost 4 parts (1n2u1w) 2490 | -9/Materials | Entered another Materials area 2490 | -8/Materials | Evolved 2 slots: Propulsion x1, Weapon x1 2958 | -8/Materials | Garrison activated, responded to threat 3041 | -8/Materials | Build established: Tank 3114 | -8/Materials | Core integrity fell below 50% 3146 | -8/Materials | Lost 14 parts (2p5n3u4w) 3211 | -8/Materials | Discovered new exit (range 13) 3215 | -8/Materials | Entered Factory 3215 | -7/Factory | Evolved 2 slots: Power x1, Propulsion x1 3401 | -7/Factory | Discovered new exit (range 9) 3408 | -7/Factory | Build established: Sprinter 3413 | -7/Factory | Entered Lower Caves 3433 | -7/Lower Caves | Spotted B-75 Beast 3436 | -7/Lower Caves | Attracted the attention of an 0b10 checkpoint 3469 | -7/Lower Caves | Discovered new exit (range 13) 3470 | -7/Lower Caves | Encountered a Warlord checkpoint 3477 | -7/Lower Caves | Entered another Lower Caves area 3635 | -7/Lower Caves | Discovered new exit (range 10) 3684 | -7/Lower Caves | Attracted the attention of an 0b10 checkpoint 3720 | -7/Lower Caves | Entered Factory 3720 | -6/Factory | Evolved 2 slots: Propulsion x1, Utility x1 3817 | -6/Factory | Discovered new exit (range 5) 3821 | -6/Factory | Entered another Factory area 3821 | -5/Factory | Evolved 2 slots: Utility x1, Weapon x1 3822 | -5/Factory | Identified exit to Upper Caves 3976 | -5/Factory | Discovered new exit (range 11) 3993 | -5/Factory | Entered Extension 4002 | -5/Extension | Rescued a captive Derelict 4007 | -5/Extension | Rescued a captive Derelict 4007 | -5/Extension | Rescued a captive Derelict 4034 | -5/Extension | Lost 3 parts (2u1w) 4044 | -5/Extension | Rescued a captive Derelict 4047 | -5/Extension | Rescued a captive Derelict 4048 | -5/Extension | Spotted B-75 Beast 4049 | -5/Extension | Spotted B-75 Beast 4053 | -5/Extension | Discovered new exit (range 3) 4054 | -5/Extension | Entered Factory 4054 | -4/Factory | Evolved 2 slots: Propulsion x1, Utility x1 4133 | -4/Factory | Spotted B-86 Titan 4225 | -4/Factory | Discovered new exit (range 5) 4226 | -4/Factory | Identified exit to Research 4226 | -4/Factory | Entered Research 4226 | -3/Research | Evolved 2 slots: Weapon x2 4228 | -3/Research | Lost 12 parts (4p5n2u1w) 4299 | -3/Research | Lost 5 parts (1p2n1u1w) 4408 | -3/Research | Spotted B-86 Titan 4430 | -3/Research | Build established: Mutant 4510 | -3/Research | Lost 5 parts (1n3u1w) 4745 | -3/Research | Spotted B-86 Titan 4747 | -3/Research | Core integrity fell below 50% 4749 | -3/Research | Discovered new exit (range 6) 4754 | -3/Research | Entered Quarantine 4776 | -3/Quarantine | Found Prototype Device 4776 | -3/Quarantine | Identified Exp. Thermal Shield 4779 | -3/Quarantine | Lost 4 parts (1p1n2u) 4790 | -3/Quarantine | Found Alien Reactor 4790 | -3/Quarantine | Identified Matter Drive 4836 | -3/Quarantine | Found Prototype Device 4836 | -3/Quarantine | Identified Exp. ECM Suite 4855 | -3/Quarantine | Found Alien Artifact 4856 | -3/Quarantine | Identified Subatomic Replicator 4897 | -3/Quarantine | Crushed by falling debris 4914 | -3/Quarantine | Crushed by falling debris 4915 | -3/Quarantine | System corruption reached 10% 4945 | -3/Quarantine | Lost 4 parts (1n2u1w) 5010 | -3/Quarantine | Found Exp. Thermal Shield 5060 | -3/Quarantine | Met incapacitated Sigix Warrior 5060 | -3/Quarantine | Lockdown squad dispatched 5071 | -3/Quarantine | Core integrity fell below 20% 5071 | -3/Quarantine | Acquired the access code to the Sigix quarantine chamber 5072 | -3/Quarantine | Unlocked Sigix quarantine chamber 5074 | -3/Quarantine | Found Sigix Containment Pod 5079 | -3/Quarantine | Destroyed by Y-72 Warden with Quantum Rifle Last Messages --------------- 05071_ Slug penetrates Sigix Quarantine Chamber. 05072_ Connecting with Sigix Quarantine Controls... 05072_ Quarantine chamber unlocked. 05072_ Quarantine chamber walls retract into the ground. 05072_ Nuclear Pulse Array destroyed. 05072_ Slug penetrates Machine. 05072_ Machine disabled. 05072_ Slug penetrates Machine. 05073_ Impulse Thruster Array destroyed. 05074_ Acquired Sigix Containment Pod. 05075_ Mic. Antimatter Reactor destroyed. 05076_ Power Sword destroyed. 05077_ Penetrated by Slug. 05078_ System corrupted: Component data lost. 05078_ Exp. Thermal Shield destroyed. 05078_ M-36 Artificer repairs S-43 Plague Xenon Bombardment Thruster. Map ----- +----------------------------------------------------+ | | | | | | | | | | | | | | | | | | | | | | | | | ????????????????????????????????????????? | | ????????????????????????????????????????? | | ?????????????????#####??????????????????? | | ?????????????????# #?????????????????? | | ?????????????????# #?????????????????? | | ?????????????????# #?????????????????? | | ?????????????????# #?????????????????? | | ?????????????????# ! #?????????????????? | | ?????????????????? #?????????????????? | | ?????###########??! #?????????????????? | | ?????#"""""""""#??? !??????????????????? | | ?????#"""""""""#??? ?#######??????????? | | ?????#"" " T#####+### !#??????????? | | ?????#"" @ T" #??????????? | | ?????#"" ss Y "" !#??????????? | | ?????#"" sm Y Y g #????????? ? | | ?????#"""s " T#T## ## #????????? " | | ?????#"""""""""#### ###^ ##????????? " | | ?????#"""""""""#??# #?# #?????????? " | | ?????###########??#####?# #?????????? | | ???????????????????????## #??#########/ | | ???????????????????????#" #??# "" # | | ???????????????????????##[ #??# ""S # | | ???????????????????????##%* #??# "" # | | ???????????????????????#" #??#= + | | ????????????????????##### #??# ! ! # | | ??????????????#######"##" #??# " | | ??????????????# ! " ########""" | | ??????????????# "" " # "# | | ??????????????# """ " # ## | | ??????????????# "R # # "" "" ## | | ??????????????# """ """ # # ""T"" ## | | ??????????????# """ """ # " """ ## | | ??????????????# """ # " ## | | ??????????????# # #"###+##### | | ??????????????########### | | ????????????????????????# | | ????????????????????????# | +----------------------------------------------------+ Best States ------------- Heat Dissipation 70 Coolant Potential 80 Energy Generation 28 Energy Capacity 480 Matter Stores 300 Matter Capacity 450 Sight Range 16 Robot Scan Range 16 Terrain Scan Range 14 Terrain Scan Density 10 ECM Strength 1 Base Temperature (-) 100 Armor Coverage 375 Resistance: TH 30 Propulsion Shielding 66 Evasion (%) 71 Recoil Reduction 4 Offensive Hacking 26 Item Schematics ----------------- Imp. Flight Unit | -9/Materials | Scanalyzed Robot Schematics ------------------ None Fabricated ------------ Nothing Repaired ---------- Nothing Studied --------- Cesium-ion Thruster | -5/Factory | Hacked Mic. Nuclear Core | -5/Factory | Hacked Q-thruster | -3/Quarantine | Hacked Alien Tech Used ----------------- Matter Drive Subatomic Replicator Achievements -------------- I Laugh At Your Crits Spot Them First Challenges ------------ None Game ------ Seed MicroThrusterShifter Manual? 0 Play Time 02:04:58 Cumulative 306.6 hours Start 2026.09.16 @ 18:26:11 End 2026.09.17 @ 02:33:55 Sessions 1 Manual Loads 0 Difficulty Rogue Special Mode None Game No. 474 Rogue 474 Adventurer 0 Explorer 0 Win Type - Total 1 Types 1/0/0/0/0/0/0/0/0/0 Lore% 66 Gallery% 60 Achievement% 35 Wizard Run 0 Options --------- Layout 1 ASCII 0 Keyboard 0 Movement Mouse Keybinds 0 Fullscreen 2 Font 24/Tallcaps Map View 50x35 Zoom Use 0% Tactical HUD 1 Map Filters NONE Filters NONE Steam 1 RUN: 69391b9f-4662-4dab-a6b1-379e627523fb